bitfinex-derivatives/quotes_SOLF0:USTF0_20241010
["timestamp","ask_amount","ask_price","bid_price","bid_amount"]
[1728584365440,0.12502,136.19,136.17,2.20783]
[1728584365636,3.80062,136.19,136.17,2.20783]
[1728584365842,3.80062,136.19,136.15,2.20783]
[1728584366044,0.12502,136.19,136.12,42.39273]
[1728584366247,0.12502,136.19,136.17,3.676]
[1728584366846,0.12502,136.19,136.18,3.6758]
[1728584367649,0.12502,136.19,136.18,5.88363]
[1728584368354,3.80052,136.19,136.12,32.4849]
[1728584368555,7.82502,136.19,136.12,1.4149]
[1728584368755,7.82502,136.19,136.12,3.62273]
[1728584368950,3.6768,136.15,136.12,7.30003]
[1728584369144,7.82502,136.19,136.12,3.62273]
[1728584369351,3.6768,136.15,136.12,3.62273]
[1728584369653,7.82502,136.19,136.12,3.62273]
[1728584369853,7.82502,136.19,136.12,34.69273]
[1728584370050,3.676,136.18,136.15,3.6765]
[1728584370250,7.82502,136.19,136.12,32.4849]
[1728584370556,3.6759,136.18,136.15,3.6764]
[1728584370951,3.6759,136.18,136.15,5.88423]
[1728584371350,11.50072,136.19,136.16,3.6763]
[1728584371550,7.82502,136.19,136.16,2.20783]
[1728584371755,7.82502,136.19,136.12,1.4149]
[1728584371955,7.82502,136.19,136.12,3.62273]
[1728584372552,3.676,136.18,136.12,3.62273]
[1728584373053,3.676,136.18,136.15,3.6764]
[1728584373255,7.82502,136.19,136.15,2.20783]
[1728584373256,11.50082,136.19,136.15,2.20783]
[1728584373452,7.82502,136.19,136.15,2.20783]
[1728584373955,3.6759,136.18,136.15,5.88433]
[1728584374151,7.82502,136.19,136.12,1.4149]
[1728584374351,7.82502,136.19,136.12,3.62273]
[1728584374554,3.6762,136.17,136.14,3.6767]
[1728584374755,3.69704957,136.18,136.12,1.4149]
[1728584374951,3.6774,136.12,136.1,2.20783]
[1728584375157,7.7,136.15,136.1,2.20783]
[1728584375357,31.07,136.14,136.1,2.20783]
[1728584375859,7.7,136.15,136.1,2.20783]
[1728584376763,3.677,136.14,136.11,3.6776]
[1728584377460,11.3768,136.15,136.12,3.6773]
[1728584377861,0.12502,136.19,136.09,1.4245]
[1728584378074,3.6764,136.16,136.13,3.677]
[1728584378269,0.12502,136.19,136.13,3.677]
[1728584378574,7.7,136.18,136.13,3.677]
[1728584378769,7.7,136.18,136.13,5.88483]
[1728584378971,3.6762,136.17,136.14,3.6767]
[1728584379275,7.7,136.18,136.14,2.20783]
[1728584380967,31.07,136.16,136.09,1.4245]
[1728584381172,31.07,136.16,136.09,3.63233]
[1728584381473,3.6769,136.14,136.09,7.31033]
[1728584381772,31.07,136.16,136.09,3.63233]
[1728584381972,3.6777,136.11,136.09,3.63233]
[1728584382366,38.77,136.14,136.09,2.20783]
[1728584382670,3.6779,136.1,136.09,2.20783]
[1728584387266,3.6775,136.12,136.09,5.88603]
[1728584388172,7.7,136.14,136.09,2.20783]
[1728584388677,7.7,136.14,136.1,3.9778]
[1728584388972,3.6772,136.13,136.1,0.3]
[1728584389276,7.7,136.14,136.1,2.50783]
[1728584389477,3.6773,136.13,136.1,2.50783]
[1728584389981,7.7,136.14,136.1,0.3]
[1728584390372,7.7,136.14,136.1,2.50783]
[1728584390776,3.6776,136.12,136.1,2.50783]
[1728584391883,3.6777,136.11,136.1,2.50783]
[1728584392084,3.6777,136.11,136.1,0.3]
[1728584392976,38.77,136.14,136.1,0.3]
[1728584393177,3.6775,136.12,136.1,0.3]
[1728584393380,7.7,136.14,136.1,0.3]
[1728584393783,3.6772,136.13,136.1,6.18563]
[1728584395180,7.7,136.16,136.1,2.50783]
[1728584395583,7.7,136.16,136.11,1.39]
[1728584395889,7.7,136.16,136.13,3.6769]
[1728584396178,7.7,136.16,136.13,2.20783]
[1728584396483,7.7,136.16,136.1,0.3]
[1728584396678,3.6777,136.11,136.1,0.3]
[1728584401178,7.34381229,136.11,136.1,0.3]
[1728584401488,7.34381229,136.11,136.07,0.12502]
[1728584401489,3.66611229,136.11,136.07,0.12502]
[1728584401690,31.07,136.1,136.07,0.12502]
[1728584401884,34.76039362,136.1,136.07,0.12502]
[1728584402079,3.6785,136.08,136.07,0.12502]
[1728584402392,7.7,136.08,136.03,2.20572]
[1728584402691,3.6801,136.03,136.0,5.73947]
[1728584402896,3.6801,136.03,136.0,3.6805]
[1728584403192,7.7,136.04,135.98,2.6654]
[1728584403391,7.7,136.04,136.01,2.33138]
[1728584403686,7.7,136.04,136.02,3.6801]
[1728584403995,7.7,136.04,136.02,5.88646]
[1728584404384,7.7,136.04,136.02,2.20636]
[1728584404586,11.3796,136.04,136.02,2.20636]
[1728584405491,3.6796,136.04,136.02,2.20636]
[1728584405786,31.07,136.04,136.01,0.12502]
[1728584406187,7.7,136.06,136.01,0.12502]
[1728584406784,7.7,136.06,136.01,2.33138]
[1728584406985,11.3792,136.06,136.02,3.6799]
[1728584407186,11.3792,136.06,136.01,2.33138]
[1728584407583,3.6792,136.06,136.02,3.6799]
[1728584407988,3.6792,136.06,136.02,5.88626]
[1728584408688,3.6796,136.04,136.02,2.20636]
[1728584409295,3.6801,136.02,136.01,0.12502]
[1728584409887,23.1101,136.02,136.01,0.12502]
[1728584410485,3.6801,136.02,136.01,0.12502]
[1728584413885,3.6809,135.99,135.98,2.20636]
[1728584414190,42.51614836,136.03,135.97,2.20636]
[1728584414394,3.6813,135.98,135.97,2.20636]
[1728584415395,38.82,135.99,135.96,2.20636]
[1728584415597,7.7,135.99,135.96,2.20636]
[1728584415783,34.81614836,136.03,135.96,2.20636]
[1728584415988,7.7,136.02,135.96,3.52066]
[1728584416487,3.6806,136.01,135.96,3.52066]
[1728584416689,11.32000632,136.02,135.96,3.52066]
[1728584417188,31.12,136.0,135.96,2.20636]
[1728584417796,3.6815,135.97,135.96,2.20636]
[1728584418994,3.6817,135.96,135.95,0.12502]
[1728584419192,3.6817,135.96,135.95,2.33138]
[1728584419390,3.6817,135.96,135.85,1.4009]
[1728584419391,31.12,135.96,135.88,3.6838]
[1728584419597,3.6832,135.91,135.89,2.33138]
[1728584419796,7.7,135.94,135.89,0.12502]
[1728584420000,3.7173012,135.93,135.89,2.33317]
[1728584420298,3.6833,135.91,135.89,2.33317]
[1728584420689,3.6834,135.9,135.89,2.33317]
[1728584421494,38.82,135.94,135.89,0.12502]
[1728584421693,3.6828,135.92,135.89,0.12502]
[1728584421887,79.5,135.97,135.89,0.12502]
[1728584422087,7.7,136.0,135.91,31.12]
[1728584422299,7.7,136.0,135.92,3.9927]
[1728584422489,7.7,136.0,135.94,3.6822]
[1728584422802,7.7,136.0,135.92,6.20085]
[1728584423899,31.12,135.99,135.92,4.84975]
[1728584424096,31.12,135.99,135.89,0.12502]
[1728584424301,3.6827,135.93,135.89,2.33317]
[1728584424492,7.7,135.95,135.89,6.01657]
[1728584424801,7.7,135.95,135.89,2.33317]
[1728584424997,3.74004185,135.94,135.89,2.33317]
[1728584425400,7.7,135.95,135.89,2.33317]
[1728584425401,3.6828,135.93,135.89,2.33317]
[1728584425804,3.7408687,135.94,135.89,2.33317]
[1728584426001,31.12,135.94,135.89,0.12502]
[1728584426202,3.6834,135.9,135.89,0.12502]
[1728584428006,7.7,135.91,135.89,0.12502]
[1728584429197,7.7,135.91,135.89,2.33317]
[1728584429910,3.6834,135.9,135.89,2.33317]
[1728584430409,3.6834,135.9,135.89,0.12502]
[1728584433397,7.7,135.91,135.89,0.12502]
[1728584433803,3.59350338,135.95,135.89,0.12502]
[1728584434107,7.7,135.94,135.89,2.33317]
[1728584434308,27.15,135.94,135.89,0.12502]
[1728584434601,3.6832,135.91,135.89,0.12502]
[1728584435107,27.15,135.94,135.89,2.33317]
[1728584435308,7.7,135.94,135.89,2.33317]
[1728584435606,7.6,135.94,135.89,2.33317]
[1728584435903,3.6828,135.93,135.89,2.33317]
[1728584436206,7.6,135.94,135.89,2.33317]
[1728584437004,3.6827,135.93,135.9,3.6831]
[1728584437205,7.6,135.94,135.9,3.6831]
[1728584437402,7.6,135.94,135.9,5.89125]
[1728584438411,3.6828,135.92,135.9,5.89125]
[1728584439112,3.6828,135.92,135.9,2.20815]
[1728584440911,3.6831,135.91,135.9,2.20815]
[1728584441215,19.45,135.92,135.89,0.12502]
[1728584442606,3.6834,135.9,135.89,0.12502]
[1728584443915,27.15,135.9,135.83,0.12502]
[1728584444113,19.45,135.88,135.83,0.12502]
[1728584444409,7.7,135.9,135.83,2.33317]
[1728584444712,19.45,135.91,135.83,2.33398]
[1728584444905,7.7,135.91,135.87,3.684]
[1728584445102,11.3832,135.91,135.84,19.45]
[1728584445302,7.7,135.91,135.83,2.33398]
[1728584445512,27.15,135.91,135.83,2.33398]
[1728584445714,3.684,135.88,135.83,2.33398]
[1728584446017,27.15,135.91,135.84,3.6849]
[1728584446209,27.15,135.91,135.83,2.33398]
[1728584446415,3.6838,135.89,135.84,19.45]
[1728584446612,7.7,135.91,135.83,2.33398]
[1728584446613,27.15,135.91,135.83,2.33398]
[1728584446815,3.684,135.88,135.83,2.33398]
[1728584447112,27.15,135.91,135.86,3.6844]
[1728584447309,27.15,135.91,135.86,5.89336]
[1728584447510,3.6838,135.89,135.86,5.89336]
[1728584448113,27.15,135.91,135.86,2.20896]
[1728584448308,3.6839,135.88,135.86,2.20896]
[1728584448514,27.15,135.91,135.85,2.20896]
[1728584449414,3.6838,135.89,135.85,2.20896]
[1728584449916,3.6838,135.89,135.86,3.6843]
[1728584450413,27.15,135.91,135.85,2.20896]
[1728584450608,3.6843,135.87,135.85,2.20896]
[1728584451007,27.15,135.91,135.85,2.20896]
[1728584451205,3.684,135.88,135.85,5.89366]
[1728584451817,27.15,135.91,135.85,2.20896]
[1728584452115,7.7,135.93,135.87,19.45]
[1728584452306,3.80382309,135.95,135.87,19.45]
[1728584452509,11.50382309,135.95,135.87,19.45]
[1728584452706,11.50382309,135.95,135.89,19.45]
[1728584453117,0.12502,135.95,135.89,19.45]
[1728584453415,0.12502,135.95,135.89,21.65896]
[1728584455115,3.6825,135.94,135.91,3.683]
[1728584455312,0.12502,135.95,135.89,21.65896]
[1728584455619,3.683,135.92,135.89,5.89246]
[1728584455920,3.683,135.92,135.89,2.20896]
[1728584456817,3.6824,135.94,135.91,3.6829]
[1728584457016,0.12502,135.95,135.89,21.65896]
[1728584457226,87.04602,136.01,135.94,19.45]
[1728584457227,0.12502,136.01,135.94,19.45]
[1728584457722,0.12502,136.01,135.95,1.404]
[1728584457919,3.72305694,136.01,135.95,5.0858]
[1728584458123,19.45,136.0,135.94,2.20896]
[1728584458315,19.45,135.99,135.94,2.20896]
[1728584458515,3.682,135.95,135.94,2.20896]
[1728584458821,3.72688117,135.97,135.92,2.20896]
[1728584459009,7.7,135.98,135.92,3.6828]
[1728584459215,19.45,135.97,135.92,2.20896]
[1728584459614,3.6825,135.93,135.92,2.20896]
[1728584460109,3.6825,135.93,135.91,1.404]
[1728584461315,3.6825,135.93,135.91,3.61296]
[1728584461821,3.6825,135.94,135.91,7.29606]
[1728584462122,19.45,135.97,135.91,3.61296]
[1728584462425,3.6821,135.95,135.91,3.61296]
[1728584462814,3.6821,135.95,135.92,3.6828]
[1728584463323,3.6823,135.94,135.92,3.6828]
[1728584463522,19.45,135.97,135.92,2.20896]
[1728584463726,19.45,135.93,135.92,2.20896]
[1728584464024,19.45,135.93,135.89,0.12502]
[1728584464228,19.45,135.91,135.89,0.12502]
[1728584464528,27.15,135.9,135.86,2.20896]
[1728584464718,27.15,135.9,135.81,2.6742]
[1728584464719,19.45,135.88,135.85,2.20896]
[1728584464919,19.45,135.88,135.83,3.81012]
[1728584464920,19.45,135.88,135.83,6.01908]
[1728584465218,3.6846,135.86,135.83,6.01908]
[1728584466123,3.6849,135.85,135.83,2.33398]
[1728584466513,3.685,135.84,135.83,2.33398]
[1728584467122,3.6848,135.85,135.83,2.33398]
[1728584467620,3.685,135.84,135.83,0.12502]
[1728584468121,38.84,135.86,135.81,2.20896]
[1728584468328,31.14,135.84,135.8,2.20896]
[1728584468513,31.14,135.84,135.77,3.71608]
[1728584469425,3.6863,135.8,135.77,3.71608]
[1728584469622,11.3863,135.8,135.77,3.71608]
[1728584469823,7.7,135.8,135.77,2.33398]
[1728584470720,3.6865,135.79,135.77,2.33398]
[1728584471118,7.7,135.8,135.77,6.02088]
[1728584471323,3.6864,135.79,135.77,2.33398]
[1728584471517,7.7,135.8,135.77,2.33398]
[1728584471727,7.7,135.8,135.77,0.12502]
[1728584472124,3.6866,135.78,135.77,0.12502]
[1728584473326,3.6874,135.75,135.74,2.20896]
[1728584473631,7.7,135.76,135.73,2.20896]
[1728584473930,7.7,135.75,135.73,2.20896]
[1728584474133,7.7,135.76,135.73,2.20896]
[1728584474431,7.7,135.77,135.73,2.20896]
[1728584474728,11.3871,135.77,135.73,2.20896]
[1728584474928,7.7,135.77,135.73,2.20896]
[1728584475427,38.84,135.77,135.73,2.20896]
[1728584475630,31.14,135.74,135.69,2.20896]
[1728584475833,31.14,135.74,135.66,1.33]
[1728584475834,3.6882,135.72,135.66,1.33]
[1728584476019,3.6882,135.72,135.68,2.20896]
[1728584476222,7.68,135.73,135.68,2.20896]
[1728584476422,3.6881,135.73,135.68,5.89806]
[1728584476633,7.68,135.73,135.68,2.20896]
[1728584476833,7.68,135.73,135.71,3.81352]
[1728584477135,8.14,135.77,135.71,2.33398]
[1728584477435,3.6882,135.73,135.71,0.12502]
[1728584477823,8.14,135.73,135.71,0.12502]
[1728584478522,3.6882,135.72,135.71,0.12502]
[1728584478929,31.14,135.75,135.71,0.12502]
[1728584479125,8.14,135.74,135.71,0.12502]
[1728584479426,31.14,135.8,135.71,0.12502]
[1728584479627,3.6869,135.78,135.73,3.6879]
[1728584479930,8.14,135.79,135.72,2.7197]
[1728584480132,3.6867,135.78,135.74,3.6877]
[1728584480335,3.6867,135.78,135.74,5.89666]
[1728584480533,8.14,135.79,135.74,2.20896]
[1728584481030,8.14,135.79,135.72,2.7197]
[1728584481226,3.6867,135.78,135.74,3.6875]
[1728584481426,3.6867,135.78,135.74,5.89646]
[1728584481934,8.14,135.79,135.74,2.20896]
[1728584482234,11.8264,135.79,135.75,3.6874]
[1728584482434,8.14,135.79,135.75,2.20896]
[1728584482835,31.14,135.77,135.72,2.20896]
[1728584483431,3.6874,135.75,135.72,2.20896]
[1728584483631,8.14,135.79,135.72,2.20896]
[1728584484032,8.14,135.79,135.73,2.7177]
[1728584484727,8.14,135.79,135.73,4.92666]
[1728584484933,3.6875,135.75,135.73,1.3211]
[1728584485137,31.14,135.78,135.72,2.20896]
[1728584485333,31.14,135.78,135.71,2.33398]
[1728584485544,3.6879,135.74,135.71,0.12502]
[1728584486337,3.6882,135.72,135.71,0.12502]
[1728584487035,8.14,135.75,135.71,0.12502]
[1728584487441,8.14,135.75,135.71,3.81332]
[1728584487633,11.8275,135.75,135.71,6.02228]
[1728584487835,11.8275,135.75,135.71,2.33398]
[1728584488142,11.8275,135.75,135.71,6.02238]
[1728584488445,8.14,135.78,135.71,2.33398]
[1728584488634,31.14,135.8,135.72,4.1265]
[1728584488933,8.14,135.79,135.72,2.7577]
[1728584489342,3.688,135.73,135.72,1.3716]
[1728584489640,31.14,135.77,135.72,1.3716]
[1728584489835,31.14,135.77,135.71,2.33398]
[1728584490241,3.6877,135.75,135.71,6.02228]
[1728584490434,31.14,135.78,135.71,6.02228]
[1728584490632,31.14,135.75,135.71,2.33398]
[1728584490836,8.14,135.74,135.71,0.12502]
[1728584491043,3.69639793,135.73,135.71,0.12502]
[1728584491245,3.6882,135.72,135.71,0.12502]
[1728584491642,8.14,135.74,135.71,0.12502]
[1728584491837,3.6882,135.73,135.71,0.12502]
[1728584492143,8.14,135.76,135.71,2.33398]
[1728584492540,8.14,135.76,135.71,0.12502]
[1728584492541,31.14,135.75,135.71,0.12502]
[1728584493148,3.6882,135.72,135.71,0.12502]
[1728584493746,31.14,135.75,135.71,0.12502]
[1728584494254,8.14,135.76,135.71,2.33398]
[1728584494447,19.47,135.74,135.71,2.33398]
[1728584494642,23.17764114,135.74,135.71,0.12502]
[1728584495047,23.1582,135.72,135.71,0.12502]
[1728584495238,3.6882,135.72,135.71,0.12502]
[1728584495547,8.14,135.76,135.71,0.12502]
[1728584495548,19.47,135.75,135.71,0.12502]
[1728584496145,3.6882,135.72,135.71,0.12502]
[1728584496347,19.47,135.74,135.71,0.12502]
[1728584496547,3.6881,135.73,135.71,0.12502]
[1728584497043,19.47,135.74,135.71,0.12502]
[1728584497242,23.1582,135.72,135.71,0.12502]
[1728584497941,3.6888,135.7,135.69,2.20896]
[1728584498146,19.47,135.7,135.67,2.20896]
[1728584498348,19.47,135.7,135.65,0.12502]
[1728584498650,3.6893,135.68,135.65,2.33398]
[1728584498846,19.47,135.7,135.65,2.33398]
[1728584499047,3.6895,135.68,135.65,2.33398]
[1728584499250,19.47,135.7,135.65,2.33398]
[1728584499544,3.6895,135.68,135.65,2.33398]
[1728584499749,3.6895,135.68,135.65,6.02408]
[1728584500052,19.47,135.7,135.65,2.33398]
[1728584500251,8.14,135.69,135.65,2.33398]
[1728584500659,3.6897,135.67,135.65,2.33398]
[1728584500854,8.14,135.69,135.65,2.33398]
[1728584501058,19.47,135.67,135.65,2.33398]
[1728584501255,27.61,135.69,135.65,2.33398]
[1728584501943,19.47,135.68,135.65,2.33398]
[1728584503550,23.1599,135.66,135.65,2.33398]
[1728584504156,8.14,135.67,135.65,2.33398]
[1728584504660,19.47,135.66,135.65,2.33398]
[1728584505157,19.47,135.66,135.64,1.95888]
[1728584505158,3.6901,135.65,135.64,1.95888]
[1728584505358,19.47,135.66,135.63,1.95888]
[1728584505560,8.56,135.65,135.63,1.95888]
[1728584506045,8.56,135.67,135.63,5.64938]
[1728584506254,26.89577358,135.66,135.63,1.95888]
[1728584506456,19.47,135.66,135.63,1.95888]
[1728584506654,19.47,135.64,135.63,1.95888]
[1728584506954,0.12502,135.71,135.61,1.95888]
[1728584507153,19.47,135.68,135.61,1.95888]
[1728584507362,23.1595,135.68,135.62,2.7702]
[1728584507652,19.47,135.66,135.62,2.7702]
[1728584508056,19.47,135.68,135.62,2.7702]
[1728584508249,19.47,135.66,135.62,2.7702]
[1728584508558,23.1594,135.68,135.62,2.7702]
[1728584508763,19.47,135.68,135.62,2.7702]
[1728584508955,19.47,135.68,135.62,4.72908]
[1728584509270,9.0,135.69,135.62,4.72908]
[1728584509765,12.6891,135.69,135.62,4.72908]
[1728584510059,9.0,135.69,135.66,3.6898]
[1728584510261,9.0,135.69,135.62,4.72908]
[1728584510664,19.47,135.7,135.62,4.72908]
[1728584510957,0.12502,135.71,135.65,19.47]
[1728584511163,0.12502,135.71,135.66,1.3904]
[1728584511954,0.12502,135.71,135.7,3.6888]
[1728584512453,0.12502,135.71,135.7,5.64768]
[1728584514057,23.28352,135.71,135.66,1.3904]
[1728584514265,19.47,135.69,135.62,2.7702]
[1728584514454,19.47,135.67,135.62,4.98095]
[1728584514654,19.47,135.67,135.64,3.6902]
[1728584515059,19.47,135.67,135.64,2.21075]
[1728584515260,19.47,135.67,135.65,3.6901]
[1728584516666,19.47,135.67,135.66,3.6899]
[1728584517168,29.17,135.69,135.66,3.6897]
[1728584517371,29.17,135.69,135.66,2.21075]
[1728584517663,19.47,135.67,135.62,2.7702]
[1728584517855,9.7,135.69,135.62,8.67175]
[1728584517856,19.47,135.65,135.62,8.67175]
[1728584518065,19.47,135.65,135.62,2.7702]
[1728584518363,19.47,135.65,135.63,3.6907]
[1728584518663,19.47,135.65,135.62,2.7702]
[1728584518861,19.47,135.65,135.62,4.98201]
[1728584519262,23.1602,135.65,135.62,2.21181]
[1728584519457,19.47,135.65,135.62,2.21181]
[1728584519867,19.47,135.63,135.57,4.0818]
[1728584520168,19.47,135.63,135.6,2.21181]
[1728584520476,10.4,135.64,135.6,2.21181]
[1728584520761,29.87,135.64,135.6,2.21181]
[1728584521165,19.47,135.66,135.6,2.21181]
[1728584521367,10.4,135.67,135.6,2.21181]
[1728584521665,19.47,135.7,135.61,19.47]
[1728584521865,19.47,135.7,135.61,1.3749]
[1728584522072,19.47,135.7,135.61,3.58671]
[1728584522265,19.47,135.66,135.61,2.21181]
[1728584522470,31.18,135.68,135.61,2.21181]
[1728584523267,3.6899,135.67,135.61,2.21181]
[1728584523769,3.6899,135.66,135.62,3.6909]
[1728584524074,31.18,135.68,135.58,2.7871]
[1728584524366,31.18,135.68,135.59,2.33683]
[1728584524761,34.8695,135.68,135.63,3.6905]
[1728584524968,31.18,135.68,135.59,2.33683]
[1728584525362,31.18,135.68,135.65,3.6901]
[1728584525571,31.18,135.68,135.59,2.33683]
[1728584525970,3.6898,135.67,135.62,3.6907]
[1728584526171,31.18,135.68,135.59,2.33683]
[1728584526369,3.6905,135.64,135.6,3.6913]
[1728584526569,31.18,135.68,135.59,2.33683]
[1728584526973,31.18,135.68,135.64,3.6902]
[1728584527171,31.18,135.68,135.59,0.12502]
[1728584527479,34.8695,135.68,135.63,3.6905]
[1728584527780,34.8695,135.68,135.59,2.33675]
[1728584527781,31.18,135.68,135.59,2.33675]
[1728584527975,31.18,135.68,135.64,3.6902]
[1728584528165,31.18,135.68,135.64,2.21173]
[1728584528563,31.18,135.68,135.65,3.6901]
[1728584528769,31.18,135.68,135.64,2.21173]
[1728584528972,31.18,135.68,135.65,3.69]
[1728584529170,31.18,135.68,135.64,2.21173]
[1728584529375,31.18,135.7,135.64,2.21173]
[1728584529670,0.12502,135.71,135.64,2.21173]
[1728584529865,0.12502,135.71,135.65,4.0439]
[1728584530064,0.12502,135.71,135.68,3.6892]
[1728584530476,0.12502,135.71,135.68,2.21173]
[1728584532565,0.12502,135.71,135.7,3.6888]
[1728584533278,0.12502,135.71,135.7,5.90053]
[1728584533473,0.12502,135.71,135.7,2.21173]
[1728584534274,0.12502,135.71,135.7,5.90053]
[1728584534976,31.18,135.76,135.7,2.21173]
[1728584535272,31.18,135.76,135.73,3.688]
[1728584535476,0.12502,135.77,135.71,2.7835]
[1728584535684,0.12502,135.77,135.76,3.6872]
[1728584536177,0.12502,135.83,135.78,3.6866]
[1728584536371,3.686,135.81,135.76,2.21173]
[1728584536576,31.30502,135.83,135.76,2.21173]
[1728584536577,0.12502,135.83,135.76,2.21173]
[1728584536976,3.6858,135.82,135.76,2.21173]
[1728584537371,0.12502,135.83,135.77,3.6868]
[1728584537679,0.12502,135.83,135.77,2.21173]
[1728584538666,31.18,135.81,135.77,2.21173]
[1728584538871,0.12502,135.83,135.77,2.21173]
[1728584539267,0.12502,135.83,135.78,2.7614]
[1728584539476,0.12502,135.83,135.82,3.6855]
[1728584539874,135.68383195,135.9,135.79,42.02]
[1728584540077,3.6842,135.88,135.84,3.6847]
[1728584540379,135.68383195,135.9,135.79,13.05173]
[1728584540584,135.68383195,135.9,135.83,3.6853]
[1728584540772,3.6843,135.87,135.83,3.6853]
[1728584541081,3.68822405,135.91,135.86,3.6844]
[1728584541274,10.84,135.92,135.83,2.21173]
[1728584541275,42.02,135.92,135.83,2.21173]
[1728584541474,31.30502,135.89,135.79,13.05173]
[1728584541780,3.6853,135.83,135.79,2.21173]
[1728584541974,31.18,135.84,135.79,2.21173]
[1728584542279,34.8651,135.84,135.79,5.89803]
[1728584542474,31.18,135.82,135.77,0.12502]
[1728584542674,31.18,135.8,135.77,0.12502]
[1728584542871,3.6866,135.78,135.77,0.12502]
[1728584543276,3.6864,135.79,135.77,0.12502]
[1728584543572,31.18,135.8,135.77,0.12502]
[1728584543777,42.02,135.82,135.77,0.12502]
[1728584543970,10.84,135.82,135.77,2.33675]
[1728584544166,31.18,135.84,135.77,2.33675]
[1728584544366,42.02,135.86,135.8,3.6859]
[1728584544578,42.02,135.86,135.77,2.33675]
[1728584544783,42.02,135.86,135.81,3.6858]
[1728584545080,3.6848,135.85,135.81,2.21173]
[1728584545279,10.84,135.86,135.82,3.6853]
[1728584545470,31.18,135.88,135.81,2.21173]
[1728584545670,34.8639,135.88,135.81,2.21173]
[1728584545872,34.8639,135.88,135.84,3.685]
[1728584546073,0.12502,135.89,135.81,33.39173]
[1728584546786,31.18,135.88,135.81,2.21173]
[1728584546977,31.18,135.86,135.81,2.21173]
[1728584547279,3.6849,135.85,135.81,2.21173]
[1728584548175,31.18,135.84,135.81,2.21173]
[1728584548677,3.686,135.81,135.8,2.21173]
[1728584549277,3.686,135.81,135.77,0.12502]
[1728584549483,3.6862,135.8,135.77,2.33675]
[1728584549678,4.76573677,135.87,135.77,2.33675]
[1728584549883,31.18,135.83,135.77,2.33675]
[1728584550182,3.6857,135.82,135.77,2.33675]
[1728584550383,42.02,135.83,135.77,2.33675]
[1728584550384,10.84,135.83,135.77,2.33675]
[1728584550575,10.84,135.83,135.78,3.6866]
[1728584550777,31.18,135.82,135.77,2.33675]
[1728584551577,31.18,135.82,135.77,0.12502]
[1728584551876,3.6865,135.79,135.77,0.12502]
[1728584552274,3.6865,135.79,135.77,2.33675]
[1728584552473,31.18,135.82,135.77,2.33675]
[1728584552673,10.84,135.83,135.77,2.33675]
[1728584552885,10.84,135.83,135.79,3.6863]
[1728584553282,31.18,135.86,135.82,3.6855]
[1728584553480,31.18,135.86,135.77,2.33675]
[1728584553781,10.84,135.88,135.79,31.18]
[1728584554088,41.8,135.92,135.81,31.18]
[1728584554284,3.6839,135.88,135.81,31.18]